bitfinex-derivatives/quotes_SOLF0:USTF0_20250914
["timestamp","ask_amount","ask_price","bid_price","bid_amount"]
[1757819314564,270.34,248.54,248.4,9.7017537]
[1757819314761,104.48,248.53,248.41,9.7017537]
[1757819315064,104.48,248.53,248.42,3.3117537]
[1757819315960,104.48,248.52,248.44,6.39]
[1757819316864,270.34,248.54,248.48,3.3117537]
[1757819317166,374.8,248.54,248.47,3.3117537]
[1757819317561,6.33,248.59,248.47,3.3117537]
[1757819317762,104.46,248.58,248.48,3.3117537]
[1757819317963,104.46,248.58,248.49,3.3117537]
[1757819318171,104.46,248.58,248.48,3.3117537]
[1757819319672,6.33,248.57,248.46,9.7017537]
[1757819319973,6.33,248.57,248.44,3.3117537]
[1757819321177,6.33,248.57,248.43,3.3117537]
[1757819321876,6.33,248.57,248.42,9.7017537]
[1757819322278,104.46,248.58,248.42,9.7017537]
[1757819322772,6.33,248.57,248.42,9.7017537]
[1757819322978,104.46,248.58,248.42,9.7017537]
[1757819323371,6.33,248.57,248.42,9.7017537]
[1757819323677,104.46,248.58,248.42,9.7017537]
[1757819323873,6.33,248.57,248.42,9.7017537]
[1757819324468,104.46,248.58,248.42,9.7017537]
[1757819324675,6.33,248.57,248.42,9.7017537]
[1757819325073,104.46,248.58,248.42,9.7017537]
[1757819325677,6.33,248.57,248.42,9.7017537]
[1757819326279,104.36,248.56,248.43,9.7017537]
[1757819326484,104.36,248.56,248.45,3.3117537]
[1757819326779,104.36,248.56,248.44,3.3117537]
[1757819326977,104.36,248.55,248.45,3.3117537]
[1757819327581,104.36,248.55,248.44,3.3117537]
[1757819327780,104.36,248.55,248.45,3.3117537]
[1757819329286,104.34,248.55,248.46,6.39]
[1757819329777,6.33,248.57,248.46,9.7017537]
[1757819329983,104.32,248.56,248.48,3.3117537]
[1757819331093,104.32,248.56,248.49,3.3117537]
[1757819332282,104.32,248.56,248.5,3.3117537]
[1757819332879,6.33,248.57,248.5,9.8617537]
[1757819333077,6.33,248.57,248.3,26.62046501]
[1757819333078,6.33,248.57,248.52,3.3117537]
[1757819333277,6.56,248.67,248.53,6.55]
[1757819333581,6.56,248.65,248.53,6.55]
[1757819333981,6.56,248.65,248.53,9.8617537]
[1757819334779,104.28,248.66,248.52,3.3117537]
[1757819335083,6.56,248.65,248.52,3.3117537]
[1757819335785,6.56,248.65,248.5,3.3117537]
[1757819337683,6.6,248.63,248.5,3.3117537]
[1757819340274,104.24,248.64,248.49,9.8617537]
[1757819340475,6.6,248.63,248.49,9.8617537]
[1757819340882,104.24,248.64,248.49,9.8617537]
[1757819341083,6.6,248.63,248.49,6.55]
[1757819344283,6.6,248.63,248.49,9.8617537]
[1757819344485,104.24,248.64,248.49,9.8617537]
[1757819344681,6.6,248.63,248.49,9.8617537]
[1757819344878,104.24,248.64,248.49,9.8617537]
[1757819345388,6.6,248.63,248.49,9.8617537]
[1757819345892,104.24,248.64,248.49,9.8617537]
[1757819346085,104.24,248.64,248.5,3.3117537]
[1757819346286,6.6,248.63,248.5,3.3117537]
[1757819346982,104.24,248.64,248.49,9.8617537]
[1757819347188,6.6,248.63,248.49,9.8617537]
[1757819348086,6.6,248.63,248.5,3.3117537]
[1757819349690,6.6,248.61,248.5,3.3117537]
[1757819354490,116.15,248.62,248.46,9.7417537]
[1757819354686,6.6,248.6,248.45,3.3117537]
[1757819355190,6.6,248.58,248.45,3.3117537]
[1757819355992,6.6,248.58,248.44,3.3117537]
[1757819357386,6.6,248.58,248.43,3.3117537]
[1757819358188,6.6,248.58,248.45,6.43]
[1757819359090,6.6,248.58,248.45,9.7417537]
[1757819359290,49.3,248.57,248.46,6.43]
[1757819359496,6.6,248.58,248.49,3.3117537]
[1757819359695,61.1,248.6,248.52,6.43]
[1757819359894,6.6,248.63,248.52,9.7417537]
[1757819360094,103.98,248.62,248.54,3.3117537]
[1757819360590,103.98,248.62,248.53,3.3117537]
[1757819360791,103.98,248.62,248.52,6.43]
[1757819360792,103.98,248.62,248.54,3.3117537]
[1757819361094,103.98,248.62,248.55,9.7417537]
[1757819363796,103.98,248.62,248.56,3.3117537]
[1757819363997,270.38,248.68,248.56,3.3117537]
[1757819364192,270.38,248.68,248.55,6.43]
[1757819364193,110.54,248.67,248.57,3.3117537]
[1757819364398,110.54,248.67,248.58,6.43]
[1757819364599,110.54,248.67,248.58,9.7417537]
[1757819365197,270.38,248.68,248.59,6.43]
[1757819365496,103.92,248.66,248.59,6.43]
[1757819365693,103.92,248.66,248.59,9.7417537]
[1757819365898,103.92,248.66,248.62,6.43]
[1757819366399,374.28,248.68,248.61,3.3117537]
[1757819366693,6.6,248.72,248.63,9.7417537]
[1757819366901,15.36,248.72,248.65,3.3117537]
[1757819367194,15.36,248.72,248.64,3.3117537]
[1757819367891,6.9,248.81,248.64,3.3117537]
[1757819368090,6.9,248.79,248.65,6.43]
[1757819368695,6.9,248.79,248.62,3.3117537]
[1757819369089,18.6534646,248.79,248.62,3.3117537]
[1757819369295,18.6534646,248.79,248.61,3.3117537]
[1757819369496,6.9,248.78,248.6,9.7417537]
[1757819369692,12.07,248.79,248.6,9.7417537]
[1757819370189,6.9,248.78,248.6,9.7417537]
[1757819370395,6.9,248.78,248.6,6.43]
[1757819371997,18.97,248.78,248.58,3.3117537]
[1757819372201,18.97,248.78,248.56,6.43]
[1757819376106,6.9,248.77,248.51,9.7417537]
[1757819376308,12.07,248.7,248.51,6.43]
[1757819376502,18.97,248.68,248.51,6.43]
[1757819376704,6.9,248.65,248.47,9.7417537]
[1757819376903,44.21,248.64,248.47,6.43]
[1757819377206,6.9,248.63,248.47,6.43]
[1757819377998,103.76,248.62,248.47,6.43]
[1757819379810,103.74,248.61,248.48,9.7417537]
[1757819380508,6.9,248.6,248.48,9.7417537]
[1757819380709,6.9,248.6,248.48,6.43]
[1757819383405,6.9,248.6,248.44,6.43]
[1757819383610,47.04,248.59,248.44,6.43]
[1757819385406,6.9,248.58,248.44,6.43]
[1757819387813,6.9,248.58,248.4,3.3117537]
[1757819388106,6.9,248.58,248.39,9.7417537]
[1757819388309,6.9,248.56,248.37,3.3117537]
[1757819388615,6.9,248.56,248.37,6.43]
[1757819390312,6.9,248.54,248.37,6.43]
[1757819390513,6.9,248.52,248.37,6.43]
[1757819393618,103.62,248.51,248.37,6.43]
[1757819393818,6.9,248.52,248.37,6.43]
[1757819394218,22.32,248.51,248.37,6.43]
[1757819395118,6.9,248.52,248.37,6.43]
[1757819395319,30.9,248.51,248.38,3.3117537]
[1757819395615,30.9,248.51,248.39,6.42]
[1757819395918,6.74,248.5,248.39,6.42]
[1757819396418,53.18,248.49,248.39,6.42]
[1757819396618,59.92,248.5,248.39,6.42]
[1757819401320,6.51,248.49,248.35,6.58]
[1757819401928,60.04,248.48,248.35,6.58]
[1757819402318,66.56,248.47,248.35,6.58]
[1757819402625,72.76,248.46,248.35,6.58]
[1757819403124,78.64,248.47,248.35,6.58]
[1757819403925,84.22,248.48,248.35,6.58]
[1757819404120,6.51,248.49,248.35,6.58]
[1757819404433,88.94,248.48,248.35,6.58]
[1757819404628,6.51,248.49,248.35,6.58]
[1757819404827,94.0,248.48,248.35,9.8917537]
[1757819405328,94.0,248.48,248.35,6.58]
[1757819405718,270.24,248.65,248.33,11.89597092]
[1757819405719,12.07,248.64,248.37,6.58]
[1757819405922,270.24,248.65,248.39,6.58]
[1757819405923,18.58,248.61,248.39,6.58]
[1757819407123,30.88705417,248.61,248.39,6.58]
[1757819407932,12.07,248.59,248.39,6.58]
[1757819408132,18.58,248.56,248.39,6.58]
[1757819408632,6.51,248.54,248.39,6.58]
[1757819409129,103.46,248.53,248.39,6.58]
[1757819409429,6.51,248.52,248.39,6.58]
[1757819410132,103.44,248.51,248.39,6.58]
[1757819410331,103.44,248.5,248.39,6.58]
[1757819411832,6.51,248.49,248.39,6.58]
[1757819412429,6.51,248.49,248.34,9.8917537]
[1757819412728,6.51,248.47,248.34,6.58]
[1757819412934,6.51,248.45,248.34,6.58]
[1757819413434,6.51,248.45,248.29,6.58]
[1757819413933,18.58,248.45,248.29,6.58]
[1757819416332,79.75,248.44,248.27,3.3117537]
[1757819416538,6.51,248.43,248.27,3.3117537]
[1757819417837,6.51,248.43,248.28,6.58]
[1757819418143,6.51,248.41,248.28,6.58]
[1757819419144,103.36,248.4,248.29,3.3117537]
[1757819419340,103.36,248.4,248.3,6.58]
[1757819419640,6.51,248.41,248.3,6.58]
[1757819419945,48.0,248.4,248.3,6.58]
[1757819420637,6.51,248.41,248.3,6.58]
[1757819420837,6.51,248.41,248.34,6.58]
[1757819421038,103.34,248.44,248.34,6.58]
[1757819421237,6.51,248.45,248.34,9.8917537]
[1757819421430,103.34,248.44,248.34,9.8917537]
[1757819421633,103.34,248.44,248.34,6.58]
[1757819421831,6.51,248.68,248.44,6.58]
[1757819422031,6.51,248.79,248.57,9.8917537]
[1757819422233,3.9,248.78,248.58,6.58]
[1757819422436,6.51,248.77,248.6,3.3117537]
[1757819422733,6.51,248.77,248.65,3.3117537]
[1757819423038,6.51,248.77,248.64,3.3117537]
[1757819423234,6.51,248.77,248.63,3.3117537]
[1757819423831,6.51,248.77,248.65,6.58]
[1757819424031,6.51,248.77,248.65,9.8917537]
[1757819425237,6.51,248.77,248.65,6.58]
[1757819425841,6.51,248.77,248.65,9.8917537]
[1757819426242,6.51,248.77,248.65,6.58]
[1757819426939,6.51,248.77,248.65,9.8917537]
[1757819427139,3.9,248.78,248.66,6.58]
[1757819428238,3.9,248.78,248.6,3.3117537]
[1757819428239,6.33,248.75,248.6,3.3117537]
[1757819428442,103.26,248.74,248.59,6.32]
[1757819432542,6.53,248.73,248.59,6.32]
[1757819433244,6.53,248.73,248.52,6.67]
[1757819433443,6.53,248.73,248.46,4.39245421]
[1757819433444,18.6,248.73,248.46,3.3117537]
[1757819433748,18.6,248.73,248.47,6.67]
[1757819434743,18.6,248.73,248.48,3.3117537]
[1757819434744,6.53,248.73,248.48,3.3117537]
[1757819434949,6.53,248.71,248.52,6.67]
[1757819440453,6.53,248.71,248.53,9.9817537]
[1757819440752,6.53,248.71,248.55,6.67]
[1757819442550,6.53,248.71,248.56,6.67]
[1757819442945,103.22,248.72,248.56,6.67]
[1757819443147,103.22,248.72,248.56,9.9817537]
[1757819443345,103.22,248.72,248.57,6.67]
[1757819444549,109.75,248.72,248.57,6.67]
[1757819453052,103.16,248.71,248.57,6.67]
[1757819454855,6.84,248.7,248.57,6.67]
[1757819459268,6.84,248.7,248.58,9.74604638]
[1757819459656,6.84,248.7,248.59,6.45]
[1757819460262,6.84,248.7,248.59,9.74604638]
[1757819460469,103.14,248.74,248.62,6.45]
[1757819460763,6.61,248.76,248.65,6.45]
[1757819461261,270.32,248.77,248.65,9.74604638]
[1757819461467,6.61,248.76,248.65,9.74604638]
[1757819462263,6.61,248.76,248.65,3.29604638]
[1757819462466,6.61,248.76,248.61,3.29604638]
[1757819462665,6.61,248.76,248.6,6.45]
[1757819463264,270.32,248.77,248.6,9.74604638]
[1757819463466,6.61,248.76,248.6,9.74604638]
[1757819463860,6.61,248.76,248.59,3.29604638]
[1757819464370,6.61,248.76,248.6,3.29604638]
[1757819465370,6.61,248.76,248.62,3.29604638]
[1757819466271,6.61,248.76,248.64,3.29604638]
[1757819466468,18.68,248.74,248.63,3.29604638]
[1757819466672,18.68,248.74,248.61,3.33321859]
[1757819466972,18.68,248.74,248.56,4.39245421]
[1757819467372,18.68,248.74,248.5,4.39245421]
[1757819467870,23.15029468,248.74,248.48,4.39245421]
[1757819468471,18.68,248.74,248.47,4.39245421]
[1757819469266,18.68,248.74,248.48,4.39245421]
[1757819469469,18.68,248.74,248.47,4.39245421]
[1757819471074,6.61,248.8,248.7,6.45]
[1757819471373,6.61,248.8,248.68,4.39245421]
[1757819471870,14.7180186,248.79,248.68,4.39245421]
[1757819472270,14.7180186,248.79,248.7,4.39245421]
[1757819474670,14.7180186,248.79,248.71,4.39245421]
[1757819475368,14.7180186,248.79,248.71,6.45]
[1757819476270,6.61,248.85,248.73,10.84245421]
[1757819477069,20.12,248.86,248.74,10.84245421]
[1757819477273,20.12,248.86,248.75,10.84245421]
[1757819477472,20.12,248.86,248.76,10.84245421]
[1757819478071,20.12,248.86,248.76,6.45]
[1757819478276,20.12,248.86,248.77,10.84245421]
[1757819478475,20.12,248.86,248.77,6.45]
[1757819482478,6.61,248.93,248.77,6.45]
[1757819487083,6.61,248.93,248.72,6.45]
[1757819487283,18.68,248.93,248.72,6.45]
[1757819489189,12.07,248.91,248.68,12.28470176]
[1757819489485,6.3,248.88,248.67,6.65]
[1757819490684,6.3,248.88,248.67,18.99269247]
[1757819490882,12.07,248.89,248.67,18.99269247]
[1757819491082,32.41949046,248.94,248.67,6.65]
[1757819491083,18.37,248.88,248.67,6.65]
[1757819491691,18.37,248.88,248.6,6.65]
[1757819494390,26.02,248.87,248.6,6.65]
[1757819494691,290.76,248.86,248.6,6.65]
[1757819494886,290.76,248.86,248.62,6.65]
[1757819495592,103.78,248.85,248.63,6.65]
[1757819496588,276.36,248.86,248.64,4.39245421]
[1757819496790,380.06,248.86,248.66,4.39245421]
[1757819496986,380.06,248.86,248.67,4.39245421]
[1757819497193,380.06,248.86,248.69,4.39245421]
[1757819497493,380.06,248.86,248.7,6.65]
[1757819498893,380.06,248.86,248.7,4.39245421]
[1757819499192,380.06,248.86,248.71,6.65]
[1757819502102,6.3,248.91,248.71,11.04245421]
[1757819502403,6.3,248.91,248.64,16.54]
[1757819502404,103.44,248.9,248.74,6.65]
[1757819506614,103.44,248.9,248.75,4.39245421]
[1757819506911,103.44,248.9,248.76,6.65]
[1757819509903,6.3,248.89,248.71,4.39245421]
[1757819510114,6.3,248.89,248.71,6.65]
[1757819513814,6.3,248.89,248.68,4.39245421]
[1757819514012,115.51,248.9,248.66,6.62]
[1757819514318,6.91,248.89,248.66,6.62]
[1757819514617,6.91,248.88,248.66,11.01245421]
[1757819514814,12.07,248.89,248.66,11.01245421]
[1757819515006,6.91,248.88,248.66,6.62]
[1757819515415,6.91,248.88,248.67,4.39245421]
[1757819516414,12.07,248.89,248.66,11.01245421]
[1757819516717,6.91,248.88,248.66,11.01245421]
[1757819517414,6.91,248.88,248.67,6.62]
[1757819517612,6.56,248.89,248.67,11.01245421]
[1757819518013,104.13964515,248.9,248.67,11.01245421]
[1757819518213,6.56,248.88,248.67,11.01245421]
[1757819518517,270.02,248.89,248.67,11.01245421]
[1757819518919,6.56,248.88,248.67,6.62]
[1757819521021,12.07,248.87,248.67,6.62]
[1757819521221,18.63,248.86,248.67,6.62]
[1757819523426,18.63,248.86,248.59,32.95197779]
[1757819523427,18.63,248.86,248.68,4.39245421]
[1757819523626,18.63,248.86,248.69,6.54]
[1757819526626,6.56,248.86,248.72,3.31187853]
[1757819526824,12.07,248.88,248.72,9.85187853]
[1757819527029,109.7,248.87,248.72,6.54]
[1757819527418,103.14,248.87,248.72,9.85187853]
[1757819527626,6.56,248.86,248.72,6.54]
[1757819527825,6.56,248.86,248.71,3.31187853]
[1757819528525,115.21,248.87,248.71,9.85187853]
[1757819529230,6.56,248.86,248.71,9.85187853]
[1757819529431,115.21,248.87,248.71,9.85187853]
[1757819530334,6.56,248.86,248.71,9.85187853]
[1757819530833,6.56,248.86,248.67,4.39245421]
[1757819530834,6.56,248.82,248.67,3.31187853]
[1757819531429,18.63,248.82,248.67,3.31187853]
[1757819531624,6.56,248.79,248.66,6.54]
[1757819531824,6.56,248.77,248.63,3.31187853]
[1757819535435,6.56,248.77,248.62,9.85187853]
[1757819535632,67.44,248.78,248.62,9.85187853]
[1757819537037,6.56,248.77,248.62,9.85187853]
[1757819537429,67.44,248.78,248.62,9.85187853]
[1757819538338,6.56,248.77,248.62,9.85187853]
[1757819539433,67.44,248.78,248.62,9.85187853]
[1757819539634,6.56,248.77,248.62,9.85187853]
[1757819540436,6.56,248.77,248.62,6.54]
[1757819541340,67.44,248.78,248.62,9.85187853]
[1757819541534,6.56,248.77,248.62,9.85187853]
[1757819541730,67.44,248.78,248.62,9.85187853]
[1757819542328,6.56,248.77,248.62,9.85187853]
[1757819542836,67.44,248.78,248.62,9.85187853]
[1757819543040,6.56,248.77,248.62,9.85187853]
[1757819543233,67.44,248.78,248.62,9.85187853]
[1757819543832,6.56,248.77,248.62,6.54]
[1757819544532,18.63,248.77,248.62,6.54]
[1757819546937,103.1,248.76,248.64,6.54]
[1757819547537,6.56,248.75,248.64,6.54]
[1757819547733,103.1,248.74,248.64,6.54]
[1757819548442,6.37,248.73,248.64,6.54]
[1757819548634,6.37,248.73,248.59,6.84]
[1757819551340,115.17,248.74,248.59,6.84]
[1757819551341,6.37,248.71,248.59,6.84]
[1757819554244,18.44,248.71,248.59,6.84]
[1757819557342,18.44,248.71,248.52,6.84]
[1757819557648,12.07,248.69,248.52,6.84]
[1757819558140,59.67,248.68,248.54,6.84]
[1757819558548,6.37,248.68,248.54,6.84]
[1757819558738,98.42,248.67,248.54,10.15187853]
[1757819558944,98.42,248.67,248.56,6.84]
[1757819559342,6.37,248.66,248.56,6.84]
[1757819559946,6.37,248.66,248.52,6.84]
[1757819560455,18.44,248.66,248.52,6.84]
[1757819562048,6.37,248.66,248.52,6.84]
[1757819562246,103.04,248.65,248.52,6.84]
[1757819562754,103.04,248.64,248.52,6.84]
[1757819563152,6.37,248.63,248.52,6.84]
[1757819565253,103.04,248.62,248.52,6.84]
[1757819565760,6.37,248.61,248.52,6.84]
[1757819566756,18.44,248.61,248.47,6.84]
[1757819569145,39.0,248.6,248.43,3.31187853]
[1757819569355,39.0,248.6,248.24,11.00046501]
[1757819569356,18.44,248.59,248.32,6.84]
[1757819575651,12.07,248.57,248.32,6.84]
[1757819575856,12.07,248.55,248.32,6.84]
[1757819576063,12.07,248.51,248.32,6.84]
[1757819576252,12.07,248.49,248.32,6.84]
[1757819576658,24.22013641,248.49,248.32,6.84]
[1757819577958,67.9,248.48,248.32,6.84]
[1757819581154,270.38,248.54,248.32,7.24]
[1757819581463,270.38,248.54,248.34,3.31187853]
[1757819581661,270.38,248.54,248.35,6.33]
[1757819582755,6.75,248.53,248.35,6.33]
[1757819583155,18.82,248.51,248.35,6.33]
[1757819588156,6.75,248.51,248.35,6.33]
[1757819588356,66.7,248.5,248.35,6.33]
[1757819593071,6.75,248.49,248.35,6.33]
[1757819600877,12.07,248.46,248.24,6.33]
[1757819601079,66.7,248.5,248.24,6.33]
[1757819601080,12.07,248.42,248.24,6.33]
[1757819601377,18.82,248.39,248.24,6.33]
[1757819601578,6.75,248.37,248.24,6.33]
[1757819604482,12.07,248.49,248.24,6.33]
[1757819604678,6.75,248.46,248.24,6.33]
[1757819604981,6.75,248.46,248.25,6.33]
[1757819605974,47.41,248.45,248.26,6.33]
[1757819606379,6.75,248.45,248.26,6.33]
[1757819606574,270.38,248.54,248.25,3.31187853]
[1757819606575,44.66,248.44,248.29,6.33]
[1757819606780,51.43,248.43,248.29,6.33]
[1757819606982,80.78,248.42,248.29,6.33]
[1757819607485,80.78,248.42,248.29,9.64187853]
[1757819607683,80.78,248.42,248.3,6.94]
[1757819608084,6.75,248.52,248.3,6.94]
[1757819608288,6.75,248.52,248.29,3.31187853]
[1757819608289,6.75,248.5,248.32,6.94]
[1757819608481,6.75,248.5,248.27,4.39245421]
[1757819608482,6.75,248.5,248.34,6.94]
[1757819608986,6.75,248.48,248.34,6.94]
[1757819609981,6.75,248.48,248.34,10.25187853]
[1757819610189,6.75,248.48,248.35,10.25187853]
[1757819610488,6.75,248.48,248.36,6.94]
[1757819610689,94.12,248.5,248.36,3.31187853]
[1757819610987,94.12,248.5,248.37,6.94]
[1757819611284,94.12,248.5,248.37,10.25187853]
[1757819611489,6.75,248.52,248.38,6.94]
[1757819611685,6.75,248.52,248.41,3.31187853]
[1757819611887,6.75,248.52,248.4,10.25187853]
[1757819612088,6.75,248.52,248.4,6.94]
[1757819614181,6.75,248.52,248.38,3.32790174]
[1757819614384,6.75,248.52,248.36,3.32790174]
[1757819614693,6.75,248.52,248.35,6.94]
[1757819614986,18.82,248.52,248.35,6.94]
[1757819615791,6.75,248.52,248.35,6.94]
[1757819615992,103.52,248.51,248.35,6.94]
[1757819616193,6.75,248.5,248.35,6.94]
[1757819620292,18.82,248.48,248.29,6.94]
[1757819620889,12.07,248.48,248.29,10.26790174]
[1757819621183,6.75,248.47,248.3,3.32790174]
[1757819622288,6.75,248.47,248.31,6.94]
[1757819622894,6.75,248.47,248.31,10.26790174]
[1757819624186,6.75,248.47,248.33,6.94]
[1757819626896,68.1,248.46,248.33,6.94]
[1757819627087,68.1,248.46,248.33,10.26790174]
[1757819628899,68.1,248.46,248.33,6.94]
[1757819629994,6.75,248.45,248.33,6.94]
[1757819634202,277.25,248.45,248.33,6.94]
[1757819635796,277.25,248.45,248.3,6.39]
[1757819636004,103.04,248.44,248.3,6.39]
[1757819636298,6.73,248.43,248.3,6.39]
[1757819636506,115.11,248.44,248.25,9.72468399]
[1757819636803,6.73,248.43,248.25,9.72468399]
[1757819636998,115.11,248.44,248.25,9.72468399]
[1757819638206,6.37,248.43,248.25,9.72468399]
[1757819638407,6.37,248.41,248.25,9.72468399]
[1757819640110,6.37,248.41,248.25,3.33468399]
[1757819640309,6.37,248.41,248.26,6.95]
[1757819642110,6.37,248.39,248.26,6.95]
[1757819642415,96.46,248.38,248.26,6.95]
[1757819642914,6.37,248.37,248.26,6.95]
[1757819644611,103.06,248.36,248.26,6.95]
[1757819644908,103.04,248.35,248.26,6.95]
[1757819645111,103.04,248.34,248.26,6.95]
[1757819645714,6.37,248.37,248.26,6.95]
[1757819645915,27.6,248.36,248.26,6.95]
[1757819647319,81.92,248.35,248.26,6.95]
[1757819649118,6.37,248.34,248.26,6.95]
[1757819649918,6.37,248.34,248.2,10.28468399]
[1757819650124,6.37,248.34,248.2,6.95]
[1757819656125,51.4,248.33,248.2,6.95]
[1757819656428,6.37,248.32,248.2,6.95]
[1757819656629,50.02,248.31,248.2,6.95]
[1757819657331,92.46,248.3,248.2,10.28666996]
[1757819657531,103.04,248.29,248.21,6.95]
[1757819657830,103.04,248.28,248.22,6.95]
[1757819658428,6.37,248.37,248.22,6.95]
[1757819658628,6.37,248.35,248.22,6.95]
[1757819659133,6.37,248.35,248.22,10.28666996]
[1757819660436,270.62,248.41,248.23,10.28666996]
[1757819660632,6.37,248.4,248.28,6.95]
[1757819660832,109.39,248.4,248.28,6.95]
[1757819661734,6.37,248.4,248.28,6.95]
[1757819661934,103.02,248.39,248.28,6.95]
[1757819662134,103.02,248.39,248.28,10.28666996]
[1757819663332,103.02,248.38,248.28,10.28666996]
[1757819663537,103.02,248.37,248.28,10.28666996]
[1757819664337,103.02,248.36,248.28,10.28666996]
[1757819664735,109.39,248.36,248.28,10.28666996]
[1757819664936,109.39,248.36,248.28,6.95]
[1757819665236,109.39,248.36,248.24,10.28666996]
[1757819665438,6.37,248.35,248.24,6.95]
[1757819665831,103.0,248.34,248.24,10.28666996]
[1757819666237,103.0,248.34,248.24,6.95]
[1757819666436,6.37,248.33,248.24,6.95]
[1757819668540,6.37,248.33,248.2,9.73666996]
[1757819669435,103.0,248.34,248.2,9.73666996]
[1757819669641,6.73,248.33,248.2,9.73666996]
[1757819672239,6.73,248.33,248.21,3.33666996]
[1757819672935,103.0,248.34,248.2,9.73666996]
[1757819673339,6.73,248.33,248.2,9.73666996]
[1757819674140,6.73,248.33,248.21,3.33666996]
[1757819675043,6.73,248.33,248.2,9.73666996]
[1757819675543,103.0,248.34,248.2,9.73666996]
[1757819675743,6.73,248.33,248.2,9.73666996]
[1757819675938,102.96,248.32,248.2,9.73666996]
[1757819676438,102.96,248.31,248.2,9.73666996]
[1757819676636,6.73,248.33,248.2,9.73666996]
[1757819676842,35.26,248.32,248.2,9.73666996]
[1757819677437,6.73,248.31,248.2,9.73666996]
[1757819678145,6.73,248.31,248.21,3.33666996]
[1757819678339,81.16,248.3,248.21,3.33666996]
[1757819678539,102.96,248.29,248.21,3.33666996]
[1757819679142,102.96,248.29,248.2,6.4]
[1757819679342,6.73,248.31,248.21,3.3505142]
[1757819679542,6.73,248.31,248.2,9.7505142]
[1757819679745,52.12,248.3,248.2,9.7505142]
[1757819682245,52.12,248.3,248.21,3.3505142]
[1757819682839,6.73,248.29,248.2,9.7505142]
[1757819684045,6.73,248.29,248.21,3.3505142]
[1757819684348,93.68,248.28,248.22,6.4]
[1757819684946,6.73,248.29,248.22,6.4]
[1757819685143,47.38,248.28,248.22,6.4]
[1757819685952,89.04,248.27,248.21,3.3505142]
[1757819686454,102.92,248.26,248.21,3.3505142]
[1757819686648,6.73,248.25,248.21,3.3505142]
[1757819686847,102.92,248.24,248.21,6.4]
[1757819687251,102.92,248.24,248.21,9.7505142]
[1757819688850,6.73,248.23,248.21,3.3505142]
[1757819689155,6.73,248.23,248.17,6.4]
[1757819691053,42.26,248.22,248.17,6.4]
[1757819691254,42.26,248.22,248.16,3.3505142]
[1757819691449,42.26,248.22,248.16,9.7505142]